Cogmind - Beta 15 @@@ ROGUE MODE // 2025.10.16 @ 22:30:53 Player: Malady Result: Destroyed by S-10 Pest with Light Assault Rifle Performance ------------- Evolutions (1) 500 Regions Visited (5) 1000 Robots Destroyed (21) 105 Value Destroyed (428) 428 Prototype IDs (1) 20 Alien Tech Used (0) 0 Bonus (0) 0 TOTAL SCORE: 2053 Bonus ------- None Cogmind --------- Core Integrity 0/400 Matter 410/500 Energy 265/265 System Corruption 0% Temperature Cool (0) Movement Walking (400) Ox4 Location -8/Mines Parts ------- > --- POWER (1) -------- Improved Ion Engine > --- PROPULSION (2) --- Aluminum Leg Aluminum Leg > --- UTILITY (4) ------ Huge Storage Unit High-capacity Matter Pod Structural Scanner Terrain Scan Processor > --- WEAPON (2) ------- Light Assault Rifle Light Assault Rifle > --- INVENTORY (25) --- Improved Ion Engine Heavy Ion Engine Light Deuterium Engine Light Nuclear Core Humpback High-capacity Matter Pod (200) Structural Scanner Structural Scanner Light Assault Rifle Light Assault Rifle Mining Laser Mining Laser Mining Laser Peak State ------------ > --- POWER ------------ Ion Engine > --- PROPULSION ------- Aluminum Leg Aluminum Leg > --- UTILITY ---------- Huge Storage Unit Structural Scanner Improved Terrain Scanner Terrain Scan Processor > --- WEAPON ----------- Light Assault Rifle Light Cannon > --- INVENTORY -------- Improved Ion Engine Improved Ion Engine Heavy Ion Engine Light Nuclear Core Aluminum Leg Aluminum Leg Aluminum Leg High-capacity Matter Pod High-capacity Matter Pod Structural Scanner Structural Scanner Light Assault Rifle Improved Light Cannon Mining Laser Mining Laser Mining Laser [Rating: 14] Favorites ----------- Power Ion Engine Engine Ion Engine Power Core Light Nuclear Core Propulsion Aluminum Leg Leg Aluminum Leg Utility Structural Scanner Device Structural Scanner Storage Huge Storage Unit Processor Terrain Scan Processor Weapon Light Assault Rifle Ballistic Gun Light Assault Rifle Ballistic Cannon Light Cannon Special Weapon Mining Laser Build | -11 -10 -9 -9 -9 -8 ------- Run | Yrd Mat Mat Min Exi Min Slots Evolved 2 | . . 2 . . . Power . | . . . . . . Propulsion . | . . . . . . Utility 2 | . . 2 . . . Weapon . | . . . . . . Parts Attached 31 | 6 2 12 2 . 9 Power 5 | 1 1 1 . . 2 Engine 4 | 1 1 1 . . 1 Core 1 | . . . . . 1 Reactor . | . . . . . . Propulsion 7 | 2 . 3 . . 2 Treads . | . . . . . . Leg 7 | 2 . 3 . . 2 Wheel . | . . . . . . Hover . | . . . . . . Flight . | . . . . . . Utility 9 | 1 1 5 2 . . Device 4 | . 1 2 1 . . Storage 4 | 1 . 3 . . . Processor 1 | . . . 1 . . Hackware . | . . . . . . Protection . | . . . . . . Artifact . | . . . . . . Weapon 10 | 2 . 3 . . 5 Energy Gun . | . . . . . . Energy Cannon . | . . . . . . Ballistic Gun 7 | 2 . 2 . . 3 Ballistic Cannon 2 | . . 1 . . 1 Launcher . | . . . . . . Special Weapon 1 | . . . . . 1 Impact Weapon . | . . . . . . Slashing Weapon . | . . . . . . Piercing Weapon . | . . . . . . Special Melee Weapon . | . . . . . . Unidentified Prototypes 1 | . . 1 . . . Parts Lost 11 | . . 1 . . 10 Power 2 | . . . . . 2 Propulsion 4 | . . 1 . . 3 Utility 1 | . . . . . 1 Weapon 4 | . . . . . 4 Highest Loss Streak 5 | . . 1 . . 5 To Critical Strikes . | . . . . . . Average Backups 13 | 1 7 10 16 16 13 Power 3 | . 1 2 4 4 3 Propulsion 2 | . 1 2 3 3 1 Utility 3 | . 2 3 4 4 4 Weapon 3 | . 1 2 5 5 4 Tool/Special . | . . . . . . Unused Backups 8 | . 5 . . . 3 Power 3 | . 2 . . . 1 Propulsion 2 | . 2 . . . . Utility 1 | . . . . . 1 Weapon 2 | . 1 . . . 1 Tool/Special . | . . . . . . Average Slot Usage (%) 91 | . 98 84 78 100 86 Engine 10 | . 14 11 11 11 5 Leg 21 | . 28 21 22 22 14 Device 15 | . 13 11 11 22 13 Storage 14 | . 14 18 11 11 18 Processor 5 | . . . . 11 11 Ballistic Gun 14 | . 28 13 11 11 13 Ballistic Cannon 7 | . . 8 11 11 3 Peak Build Rating 14 | 6 8 10 14 14 14 Average Rating 10 | 4 7 9 9 14 11 On Entrance 8 | . 6 8 9 14 14 Naked Turns . | . . . . . . Heaviest Build 95 | 12 15 90 91 91 95 Greatest Support 20 | 20 20 20 20 20 20 Greatest Overweight (x) 28 | 3 . 7 4 4 28 Average Overweight (x) 2 | . . 2 4 4 6 Largest Inventory Capacity 25 | 8 8 25 25 25 25 Average Capacity 21 | 7 8 19 25 25 25 Most Carried 18 | 4 8 16 18 18 18 Average Carried 13 | 1 7 11 16 16 14 Final Capacity 25 | 8 8 25 25 25 25 Final Carried 18 | 4 8 16 16 18 14 Class Distribution -------------------- 55% | Mutant 39% | Scavenger-Skirmisher 4% | Scavenger-Mutant Dominant Class ---------------- Mutant | -10/Materials Mutant | -9/Materials Mutant | -9/Mines Scavenger-Skirmisher | -9/Exiles Mutant | -8/Mines Resources | -11 -10 -9 -9 -9 -8 ----------- Run | Yrd Mat Mat Min Exi Min Matter Collected 1203 | 241 199 454 196 28 85 Remotely . | . . . . . . Salvage Created 502 | . 192 225 . . 85 Parts 39 | . 11 12 . . 16 Haulers Intercepted . | . . . . . . Recyclers Shooed . | . . . . . . Parts Field Recycled . | . . . . . . Retrieved Matter . | . . . . . . Parts Self-Destructed . | . . . . . . Prevented . | . . . . . . Kills | -11 -10 -9 -9 -9 -8 ------- Run | Yrd Mat Mat Min Exi Min Combat Hostiles Destroyed 21 | . 4 7 1 . 9 Guns 16 | . 4 6 . . 6 Cannons 5 | . . 1 1 . 3 Classes Destroyed 5 | . 2 2 1 . . Worker 1 | . 1 . . . . Swarmer 12 | . . 3 . . 9 Grunt 6 | . 4 2 . . . Sentry 2 | . . 2 . . . Assembled 1 | . . . 1 . . Best Kill Streak 4 | . 3 3 1 . 4 Combat Bots Only 4 | . 2 3 1 . 4 Max Kills in Single Turn 1 | . 1 1 1 . 1 Gunslinging . | . . . . . . Exploded . | . . . . . . Melee . | . . . . . . Uniques/NPCs Destroyed . | . . . . . . Combat | -11 -10 -9 -9 -9 -8 -------- Run | Yrd Mat Mat Min Exi Min Hostile Shots Fired 241 | . 47 49 12 . 133 Missed 67 | . 16 15 2 . 34 Hits 174 | . 31 34 10 . 99 Projectile 174 | . 31 34 10 . 99 Critical Strikes 3 | . 2 . . . 1 Damage Taken 1736 | . 411 388 140 . 797 Core 511 | . 107 114 44 . 246 Absorbed by Shields . | . . . . . . Core Remaining (%) 78 | 100 57 . . . . Volleys Fired 86 | . 23 25 6 2 30 Largest 2 | . 2 2 2 2 2 Hottest 100 | . 40 50 50 50 100 Shots Fired 160 | . 46 50 12 4 48 Gun 123 | . 46 42 6 2 27 Cannon 35 | . . 8 6 2 19 Launcher . | . . . . . . Special 2 | . . . . . 2 Kinetic 158 | . 46 50 12 4 46 Thermal 2 | . . . . . 2 Explosive . | . . . . . . Electromagnetic . | . . . . . . Robot Hit Streak 6 | . 4 6 3 . 4 Robot Miss Streak 6 | . 3 4 4 . 6 Penetration Max . | . . . . . . Secondary Targets 2 | . 1 1 . . . Max Gunslinging Chain 1 | . 1 1 . . . Shots Hit Robots 86 | . 27 30 5 . 24 Core Hits 37 | . 12 12 2 . 11 Critical Kills 1 | . . 1 . . . Critical Parts Destroyed . | . . . . . . Critical Strikes 1 | . . 1 . . . Destroy 1 | . . 1 . . . Melee Attacks . | . . . . . . Impact . | . . . . . . Slashing . | . . . . . . Piercing . | . . . . . . Sneak Attacks . | . . . . . . Combat Hostiles . | . . . . . . Follow-up Attacks . | . . . . . . Damage Inflicted 1171 | . 366 346 84 . 375 Guns 806 | . 349 298 18 . 141 Cannons 336 | . . 48 54 . 234 Explosions . | . . . . . . Melee . | . . . . . . Ramming 29 | . 17 . 12 . . Kinetic 1142 | . 349 346 72 . 375 Thermal . | . . . . . . Explosive . | . . . . . . Electromagnetic . | . . . . . . Impact . | . . . . . . Slashing . | . . . . . . Piercing . | . . . . . . Highest Corruption . | . . . . . . Average Corruption . | . . . . . . Corruption Purged . | . . . . . . Corruption Blocked . | . . . . . . Overload Shots . | . . . . . . Overflow Damage 7 | . . . . . 7 Projectiles 7 | . . . . . 7 Explosions . | . . . . . . Melee . | . . . . . . Knockbacks 5 | . . . 1 . 4 Impact . | . . . . . . Kinetic 5 | . . . 1 . 4 Secondary . | . . . . . . Self-Inflicted Damage . | . . . . . . Shots . | . . . . . . Rammed . | . . . . . . Targets Rammed 8 | . 7 . 1 . . Kicked 8 | . 7 . 1 . . Crushed . | . . . . . . Highest Temperature 20 | . 20 17 8 4 20 Average Temperature 6 | . 8 5 3 3 8 Received Heat Transfer 399 | . 273 126 . . . Siege Activations . | . . . . . . Martial Activations . | . . . . . . Shielding Activations . | . . . . . . Robots Disrupted . | . . . . . . Combat Hostiles . | . . . . . . Robots Corrupted . | . . . . . . Combat Hostiles . | . . . . . . Parts Fried . | . . . . . . Impact Corruptions . | . . . . . . Robots Melted . | . . . . . . Combat Hostiles . | . . . . . . Parts Melted . | . . . . . . Heat Transferred . | . . . . . . Parts Sabotaged . | . . . . . . Parts Stolen . | . . . . . . Parts Stripped . | . . . . . . Power Chain Reactions . | . . . . . . Alert | -11 -10 -9 -9 -9 -8 ------- Run | Yrd Mat Mat Min Exi Min Maximum Alert Level . | . . . . . . Low Security (%) 100 | 100 100 100 100 . 100 Level 1 . | . . . . . . Level 2 . | . . . . . . Level 3 . | . . . . . . Level 4 . | . . . . . . Level 5 . | . . . . . . High Security . | . . . . . . Max Security . | . . . . . . Peak Influence 79 | . 75 79 . . 70 Initial . | . . . . . . Average 14 | . 14 19 . . 15 Influence Increases 567 | . 120 235 . . 212 Destroy 0b10 Robot/C 400 | . 80 140 . . 180 Destroy 0b10 Robot/NC 5 | . 5 . . . . Destroy Leader 80 | . 20 30 . . 30 Successful Hack 5 | . . 5 . . . Destroy Structure 2 | . . . . . 2 Lose Combat Pursuer 75 | . 15 60 . . . Influence Decreases 567 | . 120 235 . . 212 Time Decay 412 | . 65 235 . . 112 Lost Part 100 | . . . . . 100 Purge Threat 55 | . 55 . . . . Squads Dispatched 3 | . 1 2 . . . Investigation 1 | . . 1 . . . Extermination . | . . . . . . Reinforcement 2 | . 1 1 . . . Assault . | . . . . . . Garrison . | . . . . . . Intercept . | . . . . . . Searches Triggered . | . . . . . . Construction Impeded . | . . . . . . Haulers Reinforced . | . . . . . . Active Scanning Responses . | . . . . . . Cargo Convoy Interrupts . | . . . . . . Stealth | -11 -10 -9 -9 -9 -8 --------- Run | Yrd Mat Mat Min Exi Min Distress Signals 3 | . 1 1 1 . . Communications Jammed . | . . . . . . Distress Signals . | . . . . . . Times Spotted 40 | . 10 12 4 . 14 Peak Tracking Total 4 | . 4 4 2 . 4 Tactical Retreats 4 | . 1 2 1 . . Traps | -11 -10 -9 -9 -9 -8 ------- Run | Yrd Mat Mat Min Exi Min Traps Triggered 1 | . . 1 . . . Indirectly . | . . . . . . Trap Hack Attempts . | . . . . . . Triggered . | . . . . . . Disarmed . | . . . . . . Reprogrammed . | . . . . . . Reused . | . . . . . . Traps Extracted . | . . . . . . Installed . | . . . . . . Triggered . | . . . . . . Machines | -11 -10 -9 -9 -9 -8 ---------- Run | Yrd Mat Mat Min Exi Min Machines Disabled 1 | . . . . 1 . Max in Single Turn 1 | . . . . 1 . Machines Repaired . | . . . . . . Machines Dismantled . | . . . . . . Machines Sabotaged . | . . . . . . Overloaded Fab Kills . | . . . . . . Hacking | -11 -10 -9 -9 -9 -8 --------- Run | Yrd Mat Mat Min Exi Min Machines Accessed 4 | . 1 2 . 1 . Terminals 3 | . 1 2 . . . Fabricators . | . . . . . . Repair Stations . | . . . . . . Recycling Units . | . . . . . . Scanalyzers . | . . . . . . Garrison Access . | . . . . . . Total Hacks 32 | . 3 6 . 23 . Successful 30 | . 2 5 . 23 . Failed 2 | . 1 1 . . . Catastrophic 1 | . 1 . . . . Database Lockouts . | . . . . . . Manual . | . . . . . . Terminals 9 | . 3 6 . . . Fabricators . | . . . . . . Repair Stations . | . . . . . . Recycling Units . | . . . . . . Scanalyzers . | . . . . . . Garrison Access . | . . . . . . Terminal Hacks 30 | . 2 5 . 23 . Record 26 | . . 3 . 23 . Unreport Threat 2 | . 2 . . . . Locate Traps 1 | . . 1 . . . Recall Reinforcements 1 | . . 1 . . . Fabricator Hacks . | . . . . . . Repair Station Hacks . | . . . . . . Recycling Unit Hacks . | . . . . . . Scanalyzer . | . . . . . . Garrison Access Hacks . | . . . . . . Unauthorized Hacks . | . . . . . . Terminals . | . . . . . . Fabricators . | . . . . . . Repair Stations . | . . . . . . Recycling Units . | . . . . . . Scanalyzers . | . . . . . . Garrison Access . | . . . . . . Data Cores Recovered . | . . . . . . Used . | . . . . . . Hacking Detections 3 | . 1 2 . . . Full Trace Events . | . . . . . . Feedback Events . | . . . . . . Feedback Blocked . | . . . . . . Robot Schematics Acquired . | . . . . . . Robots Built . | . . . . . . Authchips . | . . . . . . Time . | . . . . . . Total Robot Build Rating . | . . . . . . Part Schematics Acquired . | . . . . . . Parts Built . | . . . . . . Authchips . | . . . . . . Time . | . . . . . . Total Part Build Rating . | . . . . . . Parts Repaired . | . . . . . . Time . | . . . . . . Parts Recycled . | . . . . . . Recycled Matter . | . . . . . . Retrieved Matter . | . . . . . . Retrieved Components . | . . . . . . Parts Scanalyzed . | . . . . . . Part Schematics Acquired . | . . . . . . Parts Damaged . | . . . . . . Bothacking | -11 -10 -9 -9 -9 -8 ------------ Run | Yrd Mat Mat Min Exi Min Used RIF Installer . | . . . . . . Robots Hacked . | . . . . . . Non-combat . | . . . . . . Combat . | . . . . . . Robot Hacks Applied . | . . . . . . Relay Couplers Released . | . . . . . . Fabnet Peak Effective % . | . . . . . . Robots Rewired . | . . . . . . Allies Hacked . | . . . . . . Hacks Repelled . | . . . . . . Allies | -11 -10 -9 -9 -9 -8 -------- Run | Yrd Mat Mat Min Exi Min Total Allies . | . . . . . . Largest Group . | . . . . . . Highest-Rated Group . | . . . . . . Highest-Rated Ally . | . . . . . . Total Orders . | . . . . . . Ally Attacks . | . . . . . . Total Damage . | . . . . . . Kills . | . . . . . . Allies Corrupted . | . . . . . . Allies Melted . | . . . . . . Intel | -11 -10 -9 -9 -9 -8 ------- Run | Yrd Mat Mat Min Exi Min Active Infowar (turns) 3504 | . 402 929 365 1307 501 Terrain 1452 | . . . 30 1307 115 Structural 3504 | . 402 929 365 1307 501 Robot Analysis Total . | . . . . . . Derelict Logs Recovered . | . . . . . . Drone Launches . | . . . . . . Drone Recoveries . | . . . . . . Exploration | -11 -10 -9 -9 -9 -8 ------------- Run | Yrd Mat Mat Min Exi Min Turns Passed 3593 | 77 414 929 365 1307 501 Spaces Moved 1064 | 47 257 271 86 326 77 Core 21 | 11 . 2 . . 8 Treads . | . . . . . . Legs 1043 | 36 257 269 86 326 69 Wheels . | . . . . . . Hover . | . . . . . . Flight . | . . . . . . Fastest Speed 50 | 50 120 120 400 400 400 Average Speed 304 | 132 120 302 400 400 517 Slowest Speed 1450 | 200 120 400 400 400 1450 Overloaded Moves . | . . . . . . Propulsion Burnouts . | . . . . . . Robots Hopped . | . . . . . . Potential Cave-ins . | . . . . . . Cave-ins Triggered . | . . . . . . Exploration Rate (%) 30 | 4 35 25 13 76 29 Regions Visited 5 Branch Regions 3 Pre-discovered Areas 1 | . . . . 1 . Known Exits Taken . | . . . . . . Unknown Exits Taken 5 | 1 1 1 1 1 . Scrap Searched 1 | . . . . . 1 Spaces Dug . | . . . . . . Terrain Destroyed 2 | . . . . . 2 Melee . | . . . . . . Projectile 2 | . . . . . 2 AOE . | . . . . . . Terrain Rammed . | . . . . . . Walls Destroyed . | . . . . . . Machines Disabled . | . . . . . . Actions | -11 -10 -9 -9 -9 -8 --------- Run | Yrd Mat Mat Min Exi Min Total 1272 | 62 318 335 96 328 133 Wait 24 | . 9 8 . . 7 Move 1059 | 46 256 270 85 325 77 Hop . | . . . . . . Pick Up 42 | 10 13 10 2 1 6 Fast Attach 1 | . . 1 . . . Attach 25 | 6 1 5 2 . 11 Detach 5 | . . 4 . . 1 Swap 9 | . 1 7 . . 1 Drop 13 | . 8 5 . . . Fire 86 | . 23 25 6 2 30 Melee . | . . . . . . Ram . | . . . . . . Kick 8 | . 7 . 1 . . Crush . | . . . . . . Escape Stasis . | . . . . . . Rewire . | . . . . . . Trap . | . . . . . . Miscellaneous . | . . . . . . Route ------- -11/Scrapyard -10/Materials -9/Materials -9/Mines -9/Exiles (discovered 2 exits: [*Min x2]) -8/Mines History --------- Turn | Location | Event 31 | -11/Scrapyard | Discovered new exit (range 16) 78 | -11/Scrapyard | Entered Materials 330 | -10/Materials | Build established: Mutant 474 | -10/Materials | Discovered new exit (range 11) 492 | -10/Materials | Entered another Materials area 492 | -9/Materials | Evolved 2 slots: Utility x2 1286 | -9/Materials | Discovered new exit (range 16) 1421 | -9/Materials | Entered Mines 1486 | -9/Mines | Assembled infested the area 1678 | -9/Mines | Discovered new exit (range 11) 1770 | -9/Mines | Deemed a non-threat by the Exiles lab entrance 1786 | -9/Mines | Entered Exiles 1846 | -9/Exiles | Discovered new exit (range 15) 1904 | -9/Exiles | Met 8R-AWN 1976 | -9/Exiles | Met EX-HEX 2044 | -9/Exiles | Build established: Scavenger-Skirmisher 2196 | -9/Exiles | Met EX-DEC 2297 | -9/Exiles | Visited The Gauntlet 2808 | -9/Exiles | Learned location of Zion (-6) 3057 | -9/Exiles | Discovered new exit (range 11) 3093 | -9/Exiles | Entered Mines 3185 | -8/Mines | Core integrity fell below 50% 3239 | -8/Mines | Lost 5 parts (1p1n1u2w) 3269 | -8/Mines | Core integrity fell below 20% 3317 | -8/Mines | Lost 5 parts (1p2n2w) 3594 | -8/Mines | Destroyed by S-10 Pest with Light Assault Rifle Last Messages --------------- T-07 Excavator is excavating. U-05 Engineer builds a Wall. U-05 Engineer lays Concrete. T-07 Excavator is excavating. U-05 Engineer lays Concrete. U-05 Engineer builds a Wall. U-05 Engineer lays Concrete. T-07 Excavator is excavating. U-05 Engineer lays Concrete. T-07 Excavator is excavating. U-05 Engineer lays Concrete. T-07 Excavator is excavating. Searching scrap... Found Lgt. Deuterium Engine. Found Lgt. Nuclear Core. Found 38 Matter. Acquired 38 matter. Acquired Lgt. Deuterium Engine. Acquired Lgt. Nuclear Core. K-01 Serf collects debris. Map ----- +----------------------------------------------------+ | ?????????????????????????????????????????????????? | | ?????????????????????????????????????????????????? | | ?????????????????????????????????????????????????? | | ?????????????????????????????????????????????????? | | ?????????????????????????????????????????????????? | | ?????????????????????????????????????????????????? | | ?????????????????????????????????????????????????? | | ?????????????????????????????????????????????????? | | ?????????????????????????????????????????????????? | | ?????????????????????????????????????????????????? | | ???????????????????? ##??????????????????????????? | | ???????????????????? ###?????????????????????????? | | ?????????????????? ###????????????????????????? | | ????????????????# ###???????????????????????? | | ???????????????### ##???????????????????????? | | ???????????????### ##??????????????????????? | | ???????????????## ###?????????????????????? | | ?????????????????? ##?????????????????????? | | ???????????????????s s ##?????????????????????? | | ???????????????????# s ##?????????????????????? | | ???????????????????##s ###????????????????????? | | ???????????????????## ###????????????????????? | | ???????????????????## ##????????????????????? | | ?????????????????????? ##???????????????????? | | ??????????????????????## ##?????????????????? | | ??????????????????????###@ ##??????????????????## | | ???????????????????????## ##??????????????????## | | ???????????????????????## #####?????????#####?# | | ???????????????????????## #####????????######## | | ???????????????????????## ##??####??### #### | | ???????????????????????###### ########??## ### | | ???????????????????????###### ##### ##??## | | ??????????????????????????### ## ###### | | ??????????????????????????## ##### | | ??????????????????????????## ###### ? | | ??????????????????????????## ####### ?### | | ??????????????????????????### ####### ?#### | | ??????????????????????????#### ###### ##?### | | ???????????????????????????### ##### #######% | | ????????????????????????????## #### ###### | | ????????????????????????????## #### #####% | | ????????????????????????????## ##### #####% | | ????????????????????????????## ##?### % | | ????????????????????????????## ###### ######== | | ???????????????? ?????### ##### ####### * | | ???????????????? ## ### ####??## | | ?????????????????????### ####?## | | ?????????????????????## ## ###?#?## ## | | ????????????????### ?### ###########???## ## | | ????????????????## ?????## ############?### ?# | +----------------------------------------------------+ Best States ------------- Heat Dissipation 28 Energy Generation 14 Energy Capacity 265 Matter Stores 430 Matter Capacity 700 Sight Range 16 Terrain Scan Range 16 Terrain Scan Density 85 Evasion (%) 55 Item Schematics ----------------- None Robot Schematics ------------------ None Fabricated ------------ Nothing Repaired ---------- Nothing Alien Tech Used ----------------- None Achievements -------------- GoHome() Challenges ------------ None Game ------ Seed TrackerScrapClaymores Manual? 0 Play Time 00:36:24 Cumulative 5.5 hours Start 2025.10.16 @ 20:16:15 End 2025.10.16 @ 22:30:53 Sessions 1 Manual Loads 0 Difficulty Rogue Special Mode None Game No. 11 Rogue 10 Adventurer 1 Explorer 0 Win Type - Total 0 Types 0/0/0/0/0/0/0/0/0/0 Lore% 5 Gallery% 10 Achievement% 12 Wizard Run 0 Options --------- Layout 1 ASCII 0 Keyboard 0 Movement Numpad Keybinds 0 Fullscreen 1 Font 24/Smallcaps Map View 50x35 Zoom Use 3% Tactical HUD 0 Map Filters NONE Filters NONE Steam 1 RUN: bfb87e15-48ab-4bae-bb34-e01a5a72d7f1